bitfinex-derivatives/quotes_SOLF0:USTF0_20251018
["timestamp","ask_amount","ask_price","bid_price","bid_amount"]
[1760827610588,3.2188655,187.22,187.21,2.7]
[1760827610792,47.1788655,187.22,187.21,2.7]
[1760827612897,47.1788655,187.22,187.2,4.8062]
[1760827613097,5.9788655,187.22,187.2,7.5062]
[1760827613298,43.96,187.21,187.2,7.5062]
[1760827613793,2.76,187.21,187.19,2.7]
[1760827614000,46.72,187.21,187.19,2.7]
[1760827614296,2.76,187.21,187.19,2.7]
[1760827614496,43.96,187.2,187.18,4.8066]
[1760827614697,2.76,187.2,187.18,7.5066]
[1760827615095,46.72,187.2,187.18,7.5066]
[1760827615695,2.76,187.2,187.18,7.5066]
[1760827615902,46.72,187.2,187.18,7.5066]
[1760827616601,2.76,187.2,187.18,7.5066]
[1760827616799,46.72,187.2,187.18,7.5066]
[1760827620196,46.72,187.2,187.18,2.7]
[1760827620393,2.76,187.19,187.16,7.5071]
[1760827620999,2.76,187.19,187.17,2.7]
[1760827621197,3.2188655,187.19,187.16,4.8071]
[1760827621400,3.2188655,187.19,187.14,2.7]
[1760827621696,2.76,187.17,187.14,2.7]
[1760827621897,43.96,187.18,187.14,2.7]
[1760827622293,2.76,187.16,187.14,2.7]
[1760827622996,2.76,187.16,187.11,7.5084]
[1760827622997,3.2188655,187.16,187.11,7.5084]
[1760827623193,2.76,187.14,187.11,7.5084]
[1760827623900,43.96,187.15,187.11,7.5084]
[1760827624102,46.72,187.15,187.09,4.8089]
[1760827624300,2.76,187.14,187.1,2.7]
[1760827624499,3.2188655,187.16,187.11,2.7]
[1760827624701,46.74,187.14,187.11,2.7]
[1760827625004,3.2188655,187.16,187.08,2.7]
[1760827625204,43.98,187.16,187.08,2.7]
[1760827626006,3.2188655,187.19,187.08,2.7]
[1760827626205,2.76,187.18,187.08,2.7]
[1760827626605,44.0,187.17,187.08,2.7]
[1760827627202,2.76,187.18,187.08,2.7]
[1760827627506,3.2188655,187.19,187.07,9.97066376]
[1760827627507,2.84,187.14,187.11,7.3883]
[1760827628504,3.2188655,187.15,187.13,2.58]
[1760827629008,2.84,187.16,187.13,2.58]
[1760827629806,2.84,187.17,187.13,2.58]
[1760827630622,3.2188655,187.18,187.13,2.58]
[1760827631015,2.84,187.17,187.13,2.58]
[1760827631216,47.2188655,187.18,187.13,2.58]
[1760827631416,2.84,187.17,187.13,2.58]
[1760827632020,3.2188655,187.18,187.13,2.58]
[1760827632722,2.84,187.17,187.13,2.58]
[1760827632919,3.2188655,187.18,187.13,2.58]
[1760827633121,2.84,187.17,187.12,4.8081]
[1760827633417,3.2188655,187.15,187.12,4.8081]
[1760827633623,2.84,187.14,187.12,4.8081]
[1760827633822,3.2188655,187.15,187.1,7.3887]
[1760827634213,2.84,187.14,187.1,7.3887]
[1760827634619,3.2188655,187.15,187.1,7.3887]
[1760827634823,2.84,187.14,187.1,7.3887]
[1760827635019,3.2188655,187.15,187.1,7.3887]
[1760827635319,2.84,187.14,187.1,7.3887]
[1760827635521,3.2188655,187.15,187.1,7.3887]
[1760827636026,2.84,187.14,187.1,7.3887]
[1760827636526,2.67,187.14,187.1,7.3887]
[1760827636724,2.67,187.14,187.1,7.4687]
[1760827636920,3.2188655,187.15,187.1,7.4687]
[1760827637223,2.67,187.14,187.1,7.4687]
[1760827637924,3.2188655,187.15,187.1,7.4687]
[1760827638128,2.67,187.14,187.1,7.4687]
[1760827638526,3.2188655,187.15,187.1,7.4687]
[1760827639125,2.67,187.14,187.1,7.4687]
[1760827639326,3.2188655,187.15,187.1,7.4687]
[1760827639628,2.67,187.14,187.1,7.4687]
[1760827640020,3.2188655,187.15,187.1,7.4687]
[1760827640218,2.67,187.14,187.1,7.4687]
[1760827640824,3.2188655,187.15,187.1,7.4687]
[1760827641025,2.67,187.14,187.11,2.66]
[1760827641223,3.2188655,187.15,187.11,2.66]
[1760827641224,47.2188655,187.15,187.11,2.66]
[1760827641421,2.67,187.14,187.11,2.66]
[1760827641627,2.67,187.14,187.08,7.4692]
[1760827642231,2.67,187.11,187.08,7.4692]
[1760827642433,2.67,187.11,187.09,2.66]
[1760827644228,2.67,187.11,187.08,7.4692]
[1760827647529,2.67,187.11,187.06,4.8096]
[1760827647726,5.8888655,187.09,187.06,7.4696]
[1760827648825,3.2188655,187.09,187.08,2.66]
[1760827651134,5.8888655,187.12,187.08,2.66]
[1760827651630,2.67,187.11,187.08,2.66]
[1760827653437,2.67,187.11,187.08,7.4691]
[1760827654333,3.2188655,187.12,187.06,4.8096]
[1760827654636,3.2188655,187.09,187.06,4.8096]
[1760827654937,5.8888655,187.09,187.07,2.66]
[1760827657832,5.8888655,187.12,187.01,2.66]
[1760827659036,2.67,187.11,187.08,4.8091]
[1760827659337,3.2188655,187.12,187.08,4.8091]
[1760827659535,2.67,187.11,187.06,4.8097]
[1760827659730,3.2188655,187.12,187.06,4.8097]
[1760827659936,2.67,187.11,187.06,4.8097]
[1760827660435,3.2188655,187.09,186.98,2.66]
[1760827661033,3.2188655,187.09,187.05,4.8099]
[1760827661233,2.67,187.08,187.05,7.4699]
[1760827662942,2.67,187.08,187.06,2.66]
[1760827665142,2.67,187.08,187.06,7.4696]
[1760827665643,3.2188655,187.09,187.08,2.66]
[1760827666745,5.9888655,187.09,187.07,7.5794]
[1760827667145,86.9299565,188.61,187.09,2.77]
[1760827667146,4.07654178,187.17,187.09,2.77]
[1760827667346,7.74885692,187.19,187.09,2.77]
[1760827667347,2.77,187.19,187.09,2.77]
[1760827667839,3.2188655,187.22,187.11,2.77]
[1760827668047,27.27,187.23,187.11,2.77]
[1760827668240,2.77,187.23,187.18,4.8067]
[1760827668443,10.79696391,187.24,187.17,2.77]
[1760827668643,2.77,187.24,187.17,2.77]
[1760827669045,2.77,187.27,187.17,2.77]
[1760827669243,10.797411,187.27,187.17,2.77]
[1760827669946,10.797411,187.27,187.19,4.8064]
[1760827670146,10.797411,187.27,187.19,7.5764]
[1760827670648,52.087411,187.27,187.19,7.5764]
[1760827670846,8.027411,187.26,187.19,7.5764]
[1760827671047,2.77,187.25,187.19,7.5764]
[1760827671544,7.16168949,187.28,187.13,3.2188655]
[1760827671742,50.0488655,187.28,187.17,2.77]
[1760827671947,5.9888655,187.28,187.22,7.5754]
[1760827674253,2.77,187.28,187.22,7.5754]
[1760827676146,46.81,187.28,187.22,7.5754]
[1760827676446,2.77,187.28,187.22,7.5754]
[1760827676650,46.81,187.28,187.22,7.5754]
[1760827677247,2.77,187.28,187.22,7.5754]
[1760827677549,46.81,187.28,187.22,7.5754]
[1760827677750,2.77,187.28,187.22,7.5754]
[1760827678046,46.81,187.28,187.22,7.5754]
[1760827678245,2.77,187.28,187.22,7.5754]
[1760827678650,46.81,187.28,187.22,7.5754]
[1760827678851,2.77,187.28,187.22,7.5754]
[1760827679047,46.81,187.28,187.22,7.5754]
[1760827679251,2.77,187.28,187.22,7.5754]
[1760827679849,46.79,187.28,187.22,7.5754]
[1760827680250,3.2188655,187.29,187.25,2.77]
[1760827680751,5.9888655,187.29,187.26,2.77]
[1760827680952,2.77,187.28,187.26,2.77]
[1760827681255,2.77,187.28,187.21,2.77]
[1760827682352,2.77,187.28,187.23,4.8052]
[1760827682853,47.2588655,187.29,187.24,2.77]
[1760827683750,2.77,187.28,187.24,2.77]
[1760827683955,3.2188655,187.29,187.23,4.8052]
[1760827684355,2.77,187.27,187.23,7.5752]
[1760827684755,3.2188655,187.29,187.23,7.5752]
[1760827684952,44.04,187.28,187.23,7.5752]
[1760827685155,2.77,187.27,187.24,2.77]
[1760827692862,2.6,187.28,187.24,2.77]
[1760827693064,46.62,187.27,187.24,2.77]
[1760827693463,2.6,187.27,187.24,2.77]
[1760827695362,3.2188655,187.26,187.24,2.77]
[1760827695662,3.2188655,187.26,187.24,2.69]
[1760827696262,5.8188655,187.26,187.24,2.69]
[1760827698571,2.8,187.25,187.23,4.8052]
[1760827699170,2.8,187.25,187.23,7.4652]
[1760827700966,6.0188655,187.26,187.24,2.66]
[1760827704976,3.2188655,187.26,187.24,2.66]
[1760827705176,2.8,187.25,187.24,2.66]
[1760827706578,3.2188655,187.26,187.24,2.66]
[1760827706778,6.0188655,187.26,187.24,2.66]
[1760827707077,2.8,187.25,187.23,7.4652]
[1760827709883,2.8,187.25,187.23,2.66]
[1760827711483,2.8,187.25,187.23,4.8053]
[1760827711683,6.0188655,187.26,187.24,2.66]
[1760827711883,50.0188655,187.26,187.24,2.66]
[1760827712684,47.2188655,187.26,187.24,4.805]
[1760827712880,3.2188655,187.26,187.25,2.66]
[1760827713278,6.0188655,187.26,187.24,7.465]
[1760827714682,43.98,187.27,187.24,4.805]
[1760827714888,3.2188655,187.28,187.27,2.66]
[1760827715082,7.29591056,187.28,187.27,2.66]
[1760827715679,10.09591056,187.28,187.26,4.8046]
[1760827715882,6.0188655,187.28,187.26,7.4646]
[1760827716084,2.8,187.27,187.26,4.8046]
[1760827716488,6.0188655,187.28,187.26,7.4646]
[1760827717192,10.09678037,187.28,187.26,7.4646]
[1760827717586,7.29678037,187.28,187.27,2.66]
[1760827717786,3.2188655,187.28,187.27,2.66]
[1760827719892,2.8,187.27,187.26,4.8046]
[1760827726782,3.2188655,187.28,187.27,2.58]
[1760827729288,3.2188655,187.28,187.26,7.3846]
[1760827729489,5.9288655,187.28,187.26,7.3846]
[1760827730196,3.2188655,187.28,187.27,2.58]
[1760827735197,4.97885692,187.36,187.27,2.58]
[1760827735400,626.75464492,187.56,187.27,2.58]
[1760827735401,9.98275267,187.35,187.27,2.58]
[1760827735698,9.98275267,187.35,187.22,53.5913]
[1760827735699,5.9288655,187.35,187.29,2.58]
[1760827737099,5.9288655,187.35,187.33,4.8026]
[1760827740297,4.97885692,187.43,187.29,2.58]
[1760827740298,5.9288655,187.38,187.29,2.58]
[1760827740495,5.9288655,187.38,187.3,2.58]
[1760827741297,3.2188655,187.35,187.3,2.58]
[1760827741499,2.71,187.34,187.3,2.58]
[1760827741702,2.71,187.34,187.32,4.8029]
[1760827742400,2.71,187.34,187.32,7.3829]
[1760827746000,3.2188655,187.35,187.29,2.58]
[1760827746202,5.9288655,187.32,187.25,2.58]
[1760827748108,3.2188655,187.32,187.27,4.8044]
[1760827748796,2.59,187.31,187.27,7.4044]
[1760827749403,3.2188655,187.32,187.27,7.4044]
[1760827749696,2.59,187.31,187.28,4.804]
[1760827749897,2.59,187.31,187.28,7.404]
[1760827750202,2.59,187.31,187.28,4.804]
[1760827750403,2.59,187.31,187.29,2.6]
[1760827753905,3.2188655,187.32,187.29,2.6]
[1760827754109,3.2188655,187.32,187.28,4.804]
[1760827754408,5.8088655,187.32,187.29,2.6]
[1760827755308,3.2188655,187.32,187.29,2.6]
[1760827755510,2.59,187.31,187.29,2.6]
[1760827756005,2.59,187.31,187.28,4.804]
[1760827756407,3.2188655,187.32,187.28,4.804]
[1760827756607,3.2188655,187.32,187.25,2.6]
[1760827756608,2.7,187.31,187.26,4.8045]
[1760827756803,2.7,187.28,187.26,4.8045]
[1760827757209,2.7,187.28,187.26,7.5245]
[1760827757711,3.2188655,187.29,187.26,7.5245]
[1760827757907,5.9188655,187.29,187.26,7.5245]
[1760827759512,2.7,187.28,187.26,7.5245]
[1760827759701,2.7,187.28,187.24,4.805]
[1760827759906,4.0431605,187.37,187.22,2.72]
[1760827759907,2.7,187.25,187.22,2.72]
[1760827760108,2.7,187.25,187.19,9.37877884]
[1760827760309,3.2188655,187.26,187.2,4.8061]
[1760827760509,2.7,187.25,187.19,2.72]
[1760827760710,2.7,187.22,187.19,2.72]
[1760827761110,5.9188655,187.26,187.2,6.65877884]
[1760827761511,5.9188655,187.26,187.21,2.72]
[1760827761709,5.9188655,187.26,187.2,6.65877884]
[1760827762010,5.9188655,187.26,187.17,62.21481861]
[1760827762011,5.9188655,187.26,187.23,4.8054]
[1760827762313,5.9188655,187.26,187.23,7.5254]
[1760827762314,2.7,187.26,187.23,7.5254]
[1760827762507,3.2188655,187.29,187.23,7.5254]
[1760827762508,3.2188655,187.29,187.24,2.72]
[1760827762705,2.7,187.28,187.24,2.72]
[1760827765521,2.7,187.28,187.21,4.8058]
[1760827768818,52.0429655,187.29,187.21,4.8058]
[1760827769818,3.2188655,187.26,187.18,4.8066]
[1760827770021,2.7,187.24,187.18,4.8066]
[1760827770515,44.02,187.25,187.18,4.8066]
[1760827770722,2.7,187.24,187.18,4.8066]
[1760827770921,46.72,187.25,187.18,4.8066]
[1760827771115,2.7,187.24,187.18,4.8066]
[1760827771316,2.7,187.22,187.15,4.8074]
[1760827771516,47.2588655,187.23,187.15,4.8074]
[1760827771816,2.7,187.22,187.15,4.8074]
[1760827772421,2.7,187.22,187.15,7.5274]
[1760827773117,8.0244655,187.23,187.15,7.5274]
[1760827773319,44.04,187.22,187.15,7.5274]
[1760827773510,2.7,187.21,187.15,7.5274]
[1760827774418,2.7,187.21,187.15,4.8074]
[1760827777723,2.7,187.21,187.13,7.5279]
[1760827780329,2.7,187.2,187.13,7.5279]
[1760827783331,7.5063,187.2,187.13,7.5279]
[1760827783529,10.7251655,187.2,187.13,7.5279]
[1760827784329,2.7,187.19,187.13,7.5279]
[1760827789227,2.7,187.19,187.14,2.79]
[1760827789432,2.66,187.22,187.15,2.79]
[1760827790934,4.8061,187.21,187.15,2.79]
[1760827793624,2.66,187.22,187.16,2.79]
[1760827794830,4.8053,187.24,187.17,4.8068]
[1760827795030,2.66,187.23,187.17,7.5968]
[1760827796829,2.66,187.23,187.18,7.5965]
[1760827797033,2.66,187.23,187.2,2.79]
[1760827797228,2.66,187.23,187.19,2.79]
[1760827797635,2.66,187.23,187.2,2.79]
[1760827797837,2.66,187.23,187.19,2.79]
[1760827798135,2.66,187.23,187.2,2.79]
[1760827800939,2.66,187.25,187.2,2.79]
[1760827801136,2.66,187.24,187.16,7.5971]
[1760827801341,2.66,187.23,187.16,7.5971]
[1760827801733,2.66,187.22,187.16,7.5971]
[1760827802431,46.7,187.22,187.16,7.5971]
[1760827802634,2.66,187.22,187.16,7.5971]
[1760827802844,7.4658,187.22,187.16,2.79]
[1760827803338,51.5058,187.22,187.16,2.79]
[1760827809847,2.66,187.2,187.13,2.65]
[1760827810046,43.58,187.2,187.13,2.65]
[1760827810232,46.68,187.2,187.13,2.65]
[1760827810939,46.68,187.2,187.13,7.4578]
[1760827811144,46.68,187.2,187.14,2.65]
[1760827811438,46.68,187.2,187.14,4.8076]
[1760827812342,46.68,187.2,187.15,2.65]
[1760827812539,46.68,187.2,187.14,4.8076]
[1760827812843,46.68,187.2,187.15,2.65]
[1760827813143,46.68,187.2,187.14,4.8076]
[1760827813345,46.68,187.2,187.15,2.65]
[1760827813537,46.68,187.2,187.14,4.8076]
[1760827813738,2.66,187.2,187.16,2.65]
[1760827813938,46.68,187.2,187.14,4.8076]
[1760827814940,46.68,187.2,187.16,2.65]
[1760827814941,44.02,187.2,187.16,2.65]
[1760827815144,44.02,187.21,187.16,2.65]
[1760827815447,2.66,187.2,187.17,2.65]
[1760827819542,2.66,187.2,187.14,6.65877884]
[1760827819746,4.04828967,187.2,187.14,2.58]
[1760827819943,4.04828967,187.19,187.14,2.58]
[1760827820143,2.73,187.19,187.14,2.58]
[1760827820357,2.73,187.18,187.14,2.58]
[1760827820556,2.73,187.18,187.13,2.58]
[1760827820856,2.73,187.19,187.12,7.388]
[1760827821154,44.02,187.18,187.12,14.04677884]
[1760827825153,44.02,187.18,187.13,4.8079]
[1760827825760,44.02,187.18,187.14,2.58]
[1760827826058,2.73,187.17,187.14,2.58]
[1760827828562,44.02,187.18,187.14,2.58]
[1760827829154,2.73,187.17,187.14,2.58]
[1760827829350,44.02,187.18,187.14,2.58]
[1760827829860,2.73,187.17,187.14,2.58]
[1760827830562,44.02,187.18,187.14,2.58]
[1760827830759,2.73,187.17,187.14,2.58]
[1760827831358,44.02,187.18,187.14,2.58]
[1760827831558,2.73,187.17,187.14,2.58]
[1760827831963,44.02,187.18,187.14,2.58]
[1760827832364,4.8068,187.18,187.11,4.8084]
[1760827832567,2.73,187.16,187.11,4.8084]
[1760827832762,46.73,187.16,187.11,7.3884]
[1760827833066,2.73,187.15,187.11,7.3884]
[1760827833262,44.0,187.16,187.11,7.3884]
[1760827833764,2.73,187.15,187.11,7.3884]
[1760827833965,44.0,187.16,187.11,7.3884]
[1760827834169,2.73,187.15,187.11,7.3884]
[1760827834365,4.8068,187.18,187.11,7.3884]
[1760827834565,4.04774384,187.17,187.11,4.8084]
[1760827834861,46.53,187.16,187.12,2.58]
[1760827835065,43.8,187.16,187.12,2.58]
[1760827835267,2.73,187.15,187.11,4.8084]
[1760827835458,2.73,187.14,187.11,4.8084]
[1760827836060,38.94,187.15,187.11,4.8084]
[1760827836255,2.73,187.16,187.09,4.8089]
[1760827836463,2.73,187.14,187.09,7.3889]
[1760827836666,2.73,187.14,187.08,2.58]
[1760827836872,2.73,187.14,187.08,9.23877884]
[1760827837869,2.73,187.15,187.1,7.3886]
[1760827838068,41.98,187.15,187.1,7.3886]
[1760827838266,2.73,187.14,187.1,7.3886]
[1760827839169,44.0,187.15,187.08,14.04787884]
[1760827839372,2.73,187.14,187.08,7.3891]
[1760827839673,37.61,187.14,187.08,7.3891]
[1760827840069,2.73,187.14,187.08,7.3891]
[1760827840274,37.61,187.14,187.08,7.3891]
[1760827842279,46.73,187.14,187.08,7.3891]
[1760827845680,2.73,187.14,187.08,7.3891]
[1760827845978,4.8077,187.15,187.1,2.58]
[1760827846173,34.86,187.14,187.1,2.58]
[1760827846383,2.73,187.13,187.1,4.8086]
[1760827846580,2.73,187.13,187.11,2.66]
[1760827848581,46.85,187.15,187.08,2.66]
[1760827848782,46.85,187.15,187.09,2.66]
[1760827848982,2.85,187.15,187.09,2.66]
[1760827849979,2.85,187.15,187.12,4.8081]
[1760827850184,2.85,187.15,187.13,2.66]
[1760827850782,2.85,187.15,187.13,7.4679]
[1760827852682,2.85,187.16,187.11,7.4685]
[1760827852875,2.85,187.17,187.11,7.4685]
[1760827853387,6.89175671,187.17,187.11,7.4685]
[1760827853583,4.04175671,187.17,187.11,7.4685]
[1760827853885,2.85,187.16,187.11,7.4685]
[1760827854686,2.85,187.17,187.11,7.4685]
[1760827854985,2.85,187.16,187.11,4.8085]
[1760827855186,48.8068,187.18,187.11,4.8085]
[1760827855383,2.85,187.16,187.11,4.8085]
[1760827855577,4.04175671,187.17,187.11,4.8085]
[1760827855781,4.04175671,187.17,187.12,2.66]
[1760827855782,2.85,187.16,187.12,2.66]
[1760827855983,2.85,187.15,187.12,2.66]
[1760827856185,4.04175671,187.17,187.12,2.66]
[1760827856485,2.85,187.15,187.12,2.66]
[1760827858486,2.85,187.16,187.12,2.66]
[1760827859181,4.04175671,187.17,187.12,2.66]
[1760827859381,2.85,187.16,187.12,2.66]
[1760827859585,2.85,187.17,187.12,2.66]
[1760827859987,4.04175671,187.17,187.11,4.8085]
[1760827860188,2.85,187.16,187.11,7.4685]
[1760827860386,4.04175671,187.17,187.11,7.4685]
[1760827860586,2.85,187.15,187.11,4.8085]
[1760827860788,2.85,187.15,187.12,2.66]
[1760827861379,2.85,187.16,187.12,2.66]
[1760827861585,4.04175671,187.17,187.12,2.66]
[1760827861790,2.85,187.17,187.12,2.66]
[1760827861989,6.89175671,187.17,187.12,2.66]
[1760827863194,44.0,187.17,187.12,2.66]
[1760827863487,48.8068,187.18,187.12,2.66]
[1760827863692,2.85,187.16,187.12,2.66]
[1760827863892,2.85,187.15,187.12,2.66]
[1760827864388,2.85,187.15,187.11,4.8085]
[1760827865694,2.85,187.15,187.12,2.66]
[1760827865993,2.85,187.15,187.11,4.8085]
[1760827866192,2.85,187.15,187.12,2.66]
[1760827866593,2.85,187.15,187.11,4.8085]
[1760827866794,2.85,187.15,187.12,2.59]
[1760827866995,2.85,187.15,187.11,4.8085]
[1760827867193,2.85,187.15,187.12,2.59]
[1760827867395,2.85,187.15,187.11,4.8085]
[1760827867595,2.85,187.15,187.12,2.59]
[1760827868197,2.85,187.15,187.11,4.8085]
[1760827868796,2.85,187.15,187.12,2.59]
[1760827868992,2.85,187.15,187.11,4.8085]
[1760827869194,2.85,187.15,187.12,2.59]
[1760827875297,6.89482234,187.15,187.12,2.59]
[1760827875502,2.85,187.15,187.12,2.59]
[1760827875709,2.75,187.15,187.12,2.59]
[1760827875911,6.79482234,187.15,187.12,2.59]
[1760827876106,2.75,187.15,187.12,2.59]
[1760827876409,2.76,187.15,187.12,2.59]
[1760827876614,2.76,187.14,187.12,2.59]
[1760827882517,2.76,187.15,187.11,4.8085]
[1760827882719,2.76,187.16,187.11,4.8085]
[1760827883017,2.76,187.14,187.11,7.4485]
[1760827883418,4.04177757,187.16,187.11,7.4485]
[1760827883617,2.76,187.14,187.11,7.4485]
[1760827884516,2.76,187.16,187.11,7.4485]
[1760827884716,2.76,187.14,187.11,7.4485]
[1760827884914,2.76,187.13,187.11,7.4485]
[1760827885314,2.76,187.14,187.09,7.449]
[1760827885620,8.0262655,187.16,187.09,7.449]
[1760827885621,2.76,187.12,187.09,7.449]
[1760827885920,2.76,187.13,187.09,7.449]
[1760827886320,2.76,187.12,187.09,7.449]
[1760827886515,4.04176607,187.14,187.09,7.449]
[1760827886720,2.76,187.12,187.09,7.449]
[1760827886921,2.76,187.14,187.09,7.449]
[1760827887115,4.04176607,187.13,187.09,7.449]
[1760827887320,2.76,187.11,187.09,7.449]
[1760827891421,48.8076,187.15,187.07,7.4494]
[1760827891422,2.76,187.12,187.07,7.4494]
[1760827891617,2.76,187.12,187.04,2.64]
[1760827893021,2.76,187.11,187.08,7.4491]
[1760827893222,2.76,187.12,187.08,7.4491]
[1760827893821,3.93924197,187.13,187.08,7.4491]
[1760827894229,2.76,187.12,187.08,7.4491]
[1760827894432,2.76,187.11,187.08,7.4491]
[1760827895328,2.76,187.11,187.09,2.64]
[1760827896223,2.76,187.11,187.09,7.4489]
[1760827896417,2.76,187.13,187.1,2.64]
[1760827898331,2.76,187.13,187.09,4.8089]
[1760827898530,2.76,187.13,187.1,2.64]
[1760827899329,7.9793323,187.14,187.1,2.64]
[1760827899330,3.93756623,187.14,187.1,2.64]
[1760827899534,2.76,187.12,187.1,2.64]
[1760827901237,2.76,187.13,187.08,2.64]
[1760827901737,2.76,187.12,187.05,4.81]
[1760827902034,54.72984797,187.12,187.06,2.64]
[1760827902236,46.76,187.12,187.06,2.64]
[1760827902430,4.8086,187.11,187.06,2.64]
[1760827902633,2.76,187.1,187.06,2.64]
[1760827902834,2.76,187.1,187.05,4.81]
[1760827903036,2.76,187.1,187.06,2.64]
[1760827903432,2.76,187.1,187.05,4.81]
[1760827903941,2.76,187.1,187.06,2.64]
[1760827904733,2.76,187.1,187.05,4.81]
[1760827905039,2.76,187.09,187.05,4.81]
[1760827905239,2.76,187.1,187.05,7.45]
[1760827905440,4.8086,187.11,187.05,7.45]
[1760827905833,2.76,187.09,187.05,4.81]
[1760827906039,2.76,187.09,187.06,2.64]
[1760827906544,2.76,187.09,187.05,4.81]
[1760827906732,2.76,187.09,187.06,2.58]
[1760827907033,2.76,187.09,187.05,4.81]
[1760827907441,2.76,187.09,187.06,2.58]
[1760827907941,2.82,187.1,187.06,2.58]
[1760827908142,48.8086,187.11,187.06,2.58]
[1760827908344,2.82,187.1,187.06,2.58]
[1760827909045,2.82,187.1,187.03,7.3905]
[1760827909046,2.82,187.09,187.03,7.3905]
[1760827912147,52.7502766,187.1,187.03,7.3905]
[1760827912348,2.82,187.09,187.03,7.3905]
[1760827912648,46.82,187.09,187.03,7.3905]
[1760827913743,2.82,187.08,187.03,7.3905]
[1760827914139,4.8089,187.1,187.03,7.3905]
[1760827914450,44.0,187.09,187.03,7.3905]
[1760827914847,44.0,187.08,187.04,2.58]
[1760827915148,2.82,187.07,187.04,2.58]
[1760827916347,44.0,187.08,187.04,2.58]
[1760827916553,2.82,187.07,187.04,2.58]
[1760827917254,44.0,187.08,187.04,2.58]
[1760827917553,2.82,187.07,187.04,2.58]
[1760827917749,44.0,187.08,187.04,2.58]
[1760827917943,2.82,187.07,187.04,2.58]
[1760827918155,44.0,187.08,187.04,2.58]
[1760827918349,2.82,187.07,187.04,2.58]
[1760827919152,44.0,187.08,187.04,2.58]
[1760827919553,2.82,187.07,187.05,2.58]
[1760827920249,4.8089,187.1,187.05,2.58]
[1760827920455,44.0,187.09,187.05,2.58]
[1760827920656,2.82,187.08,187.05,2.58]
[1760827920859,2.82,187.07,187.05,2.58]
[1760827921252,2.82,187.07,187.04,7.3901]
[1760827922354,3.2188655,187.07,187.04,4.8101]
[1760827922557,2.82,187.06,187.04,4.8101]
[1760827922954,2.82,187.06,187.04,7.3901]
[1760827926858,2.59,187.06,187.02,7.5407]
[1760827927860,3.2188655,187.07,187.04,2.73]
[1760827928065,2.59,187.06,187.04,2.73]
[1760827932963,47.2188655,187.07,187.05,2.73]
[1760827932964,3.2188655,187.07,187.05,2.73]
[1760827933262,2.59,187.09,187.05,2.73]
[1760827933263,44.0,187.08,187.05,2.73]